[Event "*** Titled Tuesday Blitz"]
[Site "Chess.com"]
[Date "2021.02.16"]
[Round "9"]
[White "Pogosian_Manvel"]
[Black "KonstantinB_1983"]
[Result "1/2-1/2"]
[WhiteElo "2407"]
[BlackElo "2533"]
[TimeControl "180+1"]
[EndTime "11:50:10 PST"]
[Termination "Game drawn by repetition"]

1. Nf3 {[%clk 0:02:51.9]} 1... Nf6 {[%clk 0:02:57.2]} 2. g3 {[%clk 0:02:44.9]}
2... d6 {[%clk 0:02:56.9]} 3. Bg2 {[%clk 0:02:43]} 3... e5 {[%clk 0:02:56.5]} 4.
O-O {[%clk 0:02:43.9]} 4... Be7 {[%clk 0:02:55]} 5. d3 {[%clk 0:02:44.5]} 5...
Nbd7 {[%clk 0:02:54.7]} 6. b3 {[%clk 0:02:44.4]} 6... c6 {[%clk 0:02:54.9]} 7.
Bb2 {[%clk 0:02:44.3]} 7... O-O {[%clk 0:02:55.2]} 8. e4 {[%clk 0:02:44.7]} 8...
Re8 {[%clk 0:02:55.4]} 9. Nbd2 {[%clk 0:02:45.3]} 9... Bf8 {[%clk 0:02:55.1]}
10. d4 {[%clk 0:02:45.8]} 10... Qc7 {[%clk 0:02:52.8]} 11. c4 {[%clk 0:02:43.3]}
11... exd4 {[%clk 0:02:51.9]} 12. Nxd4 {[%clk 0:02:43]} 12... Nc5 {[%clk
0:02:52.2]} 13. Qc2 {[%clk 0:02:41]} 13... a5 {[%clk 0:02:51.6]} 14. h3 {[%clk
0:02:40.6]} 14... Bd7 {[%clk 0:02:50.5]} 15. Rad1 {[%clk 0:02:40.2]} 15... Rad8
{[%clk 0:02:50.3]} 16. f4 {[%clk 0:02:40]} 16... Bc8 {[%clk 0:02:50.5]} 17. Rfe1
{[%clk 0:02:40.4]} 17... Nfd7 {[%clk 0:02:50.8]} 18. Kh2 {[%clk 0:02:38.3]}
18... Nb8 {[%clk 0:02:50.8]} 19. a3 {[%clk 0:02:35.7]} 19... Qb6 {[%clk
0:02:49.3]} 20. Bc3 {[%clk 0:02:33.7]} 20... Nba6 {[%clk 0:02:47.1]} 21. Qb2
{[%clk 0:02:31.1]} 21... Nd3 {[%clk 0:02:43.1]} 22. Qc2 {[%clk 0:02:27.6]} 22...
Nxe1 {[%clk 0:02:42.1]} 23. Rxe1 {[%clk 0:02:28.3]} 23... d5 {[%clk 0:02:28.5]}
24. e5 {[%clk 0:02:16.8]} 24... c5 {[%clk 0:02:27.1]} 25. Nb5 {[%clk 0:02:11.8]}
25... Bd7 {[%clk 0:02:19]} 26. a4 {[%clk 0:02:05.8]} 26... d4 {[%clk 0:02:10.9]}
27. Bb2 {[%clk 0:02:01.7]} 27... Nb4 {[%clk 0:02:10.7]} 28. Qb1 {[%clk
0:02:01.2]} 28... Bc6 {[%clk 0:02:10]} 29. Ne4 {[%clk 0:02:00.7]} 29... d3
{[%clk 0:02:05.9]} 30. Bc3 {[%clk 0:01:58]} 30... Nc2 {[%clk 0:01:55.4]} 31. Rg1
{[%clk 0:01:33.6]} 31... Ne3 {[%clk 0:01:37]} 32. Bf3 {[%clk 0:01:32.6]} 32...
Bxe4 {[%clk 0:01:22.7]} 33. Bxe4 {[%clk 0:01:30.4]} 33... d2 {[%clk 0:01:22.8]}
34. Bxh7+ {[%clk 0:01:18.6]} 34... Kh8 {[%clk 0:01:22.7]} 35. Bc2 {[%clk
0:01:19]} 35... Nxc2 {[%clk 0:01:09.2]} 36. Qxc2 {[%clk 0:01:18.8]} 36... Qg6
{[%clk 0:01:08.5]} 37. Qxg6 {[%clk 0:01:10.7]} 37... fxg6 {[%clk 0:01:07.4]} 38.
Rd1 {[%clk 0:01:11.4]} 38... Rd3 {[%clk 0:01:07.1]} 39. Rxd2 {[%clk 0:01:10.7]}
39... Rxd2+ {[%clk 0:01:04.3]} 40. Bxd2 {[%clk 0:01:10.7]} 40... Rd8 {[%clk
0:01:04.6]} 41. Bxa5 {[%clk 0:01:04.9]} 41... Rd3 {[%clk 0:01:03.8]} 42. Bc3
{[%clk 0:01:03.1]} 42... Rd1 {[%clk 0:00:58]} 43. Kg2 {[%clk 0:01:02.8]} 43...
Rb1 {[%clk 0:00:57.2]} 44. Kf3 {[%clk 0:00:55.5]} 44... Rxb3 {[%clk 0:00:56]}
45. Ke4 {[%clk 0:00:55.5]} 45... Kg8 {[%clk 0:00:55]} 46. g4 {[%clk 0:00:55.3]}
46... Kf7 {[%clk 0:00:52.5]} 47. f5 {[%clk 0:00:55]} 47... gxf5+ {[%clk
0:00:51.3]} 48. gxf5 {[%clk 0:00:55.9]} 48... Rb1 {[%clk 0:00:50.8]} 49. e6+
{[%clk 0:00:49.7]} 49... Ke8 {[%clk 0:00:49.3]} 50. Bd2 {[%clk 0:00:46.5]} 50...
Be7 {[%clk 0:00:44.9]} 51. Nc7+ {[%clk 0:00:40.6]} 51... Kd8 {[%clk 0:00:43.9]}
52. Nd5 {[%clk 0:00:41.2]} 52... Rd1 {[%clk 0:00:37.3]} 53. Ba5+ {[%clk
0:00:39.3]} 53... Ke8 {[%clk 0:00:35.6]} 54. Bc3 {[%clk 0:00:29.1]} 54... Bf8
{[%clk 0:00:24.6]} 55. a5 {[%clk 0:00:28.4]} 55... Rh1 {[%clk 0:00:20.9]} 56.
Nf4 {[%clk 0:00:26.2]} 56... Rc1 {[%clk 0:00:20.1]} 57. Nd5 {[%clk 0:00:22.9]}
57... Rh1 {[%clk 0:00:18.1]} 58. Bd2 {[%clk 0:00:19.9]} 58... Rxh3 {[%clk
0:00:16.1]} 59. Bg5 {[%clk 0:00:20.6]} 59... Bd6 {[%clk 0:00:15.1]} 60. Ne3
{[%clk 0:00:17.5]} 60... Rg3 {[%clk 0:00:14.5]} 61. Kd5 {[%clk 0:00:15.5]} 61...
Be7 {[%clk 0:00:12.4]} 62. Bxe7 {[%clk 0:00:14.9]} 62... Kxe7 {[%clk 0:00:11.9]}
63. Ke4 {[%clk 0:00:14.9]} 63... Rh3 {[%clk 0:00:10.9]} 64. Nd5+ {[%clk
0:00:15.3]} 64... Kd6 {[%clk 0:00:10.8]} 65. e7 {[%clk 0:00:14.7]} 65... Rh4+
{[%clk 0:00:11.1]} 66. Kf3 {[%clk 0:00:14.3]} 66... Kd7 {[%clk 0:00:11.2]} 67.
Kg3 {[%clk 0:00:11.3]} 67... Rd4 {[%clk 0:00:11.4]} 68. Kf3 {[%clk 0:00:10.9]}
68... Ke8 {[%clk 0:00:11.7]} 69. Ke3 {[%clk 0:00:08.3]} 69... Rxc4 {[%clk
0:00:11.8]} 70. Kd3 {[%clk 0:00:08.5]} 70... Ra4 {[%clk 0:00:12.1]} 71. Kc3
{[%clk 0:00:09.4]} 71... Rxa5 {[%clk 0:00:11.9]} 72. Nc7+ {[%clk 0:00:09.8]}
72... Kd7 {[%clk 0:00:11.4]} 73. Nd5 {[%clk 0:00:10.7]} 73... Ke8 {[%clk
0:00:11.2]} 74. Kc4 {[%clk 0:00:09.8]} 74... Kd7 {[%clk 0:00:09.4]} 75. Kb3
{[%clk 0:00:05.8]} 75... b5 {[%clk 0:00:08.2]} 76. Kc3 {[%clk 0:00:05.4]} 76...
Ra6 {[%clk 0:00:07.8]} 77. e8=Q+ {[%clk 0:00:04.5]} 77... Kxe8 {[%clk
0:00:06.9]} 78. Nc7+ {[%clk 0:00:05.4]} 78... Kd7 {[%clk 0:00:07.1]} 79. Nxa6
{[%clk 0:00:06.3]} 79... Kc6 {[%clk 0:00:07.4]} 80. Nb8+ {[%clk 0:00:05.7]}
80... Kc7 {[%clk 0:00:06.8]} 81. Na6+ {[%clk 0:00:05.7]} 81... Kb6 {[%clk
0:00:07]} 82. Nb8 {[%clk 0:00:06]} 82... Kc7 {[%clk 0:00:07.3]} 83. Na6+ {[%clk
0:00:05.4]} 83... Kb6 {[%clk 0:00:07.6]} 84. Nb8 {[%clk 0:00:05.6]} 84... Kc7
{[%clk 0:00:07.7]} 1/2-1/2

[Event "*** Titled Tuesday Blitz"]
[Site "Chess.com"]
[Date "2021.02.16"]
[Round "9"]
[White "Sibelephant"]
[Black "MITerryble"]
[Result "1-0"]
[WhiteElo "3033"]
[BlackElo "2930"]
[TimeControl "180+1"]
[EndTime "11:50:17 PST"]
[Termination "Sibelephant won on time"]

1. Nf3 {[%clk 0:03:00.2]} 1... Nf6 {[%clk 0:02:59.6]} 2. b3 {[%clk 0:03:00]}
2... d5 {[%clk 0:02:59.6]} 3. Bb2 {[%clk 0:03:00.4]} 3... c6 {[%clk 0:03:00]} 4.
g3 {[%clk 0:02:56.7]} 4... Bg4 {[%clk 0:02:59.6]} 5. Bg2 {[%clk 0:02:56.8]} 5...
Nbd7 {[%clk 0:02:59.7]} 6. O-O {[%clk 0:02:56.7]} 6... e6 {[%clk 0:03:00]} 7. d3
{[%clk 0:02:56.7]} 7... Bd6 {[%clk 0:03:00]} 8. Nbd2 {[%clk 0:02:57]} 8... O-O
{[%clk 0:02:59.5]} 9. h3 {[%clk 0:02:57.1]} 9... Bh5 {[%clk 0:02:58.1]} 10. Qe1
{[%clk 0:02:52]} 10... Qe7 {[%clk 0:02:55]} 11. a3 {[%clk 0:02:50.8]} 11... Bxf3
{[%clk 0:02:48.2]} 12. Nxf3 {[%clk 0:02:49.4]} 12... e5 {[%clk 0:02:48.5]} 13.
e4 {[%clk 0:02:49.5]} 13... dxe4 {[%clk 0:02:48.1]} 14. dxe4 {[%clk 0:02:49.4]}
14... Nc5 {[%clk 0:02:47.5]} 15. Nd2 {[%clk 0:02:45.3]} 15... Rad8 {[%clk
0:02:45.7]} 16. Nc4 {[%clk 0:02:38.4]} 16... Bc7 {[%clk 0:02:45.5]} 17. a4
{[%clk 0:02:38.8]} 17... Rfe8 {[%clk 0:02:38]} 18. Ba3 {[%clk 0:02:17.9]} 18...
b6 {[%clk 0:02:37.9]} 19. Qe3 {[%clk 0:02:11.7]} 19... Rd4 {[%clk 0:02:30.8]}
20. c3 {[%clk 0:02:11.3]} 20... Rd7 {[%clk 0:02:26.6]} 21. a5 {[%clk 0:02:02.8]}
21... Red8 {[%clk 0:02:21.6]} 22. axb6 {[%clk 0:02:01.4]} 22... axb6 {[%clk
0:02:22.5]} 23. Bxc5 {[%clk 0:01:52.6]} 23... bxc5 {[%clk 0:02:12.3]} 24. Ra7
{[%clk 0:01:45.9]} 24... Rd3 {[%clk 0:02:04.7]} 25. Qc1 {[%clk 0:01:45.7]} 25...
h5 {[%clk 0:01:57.5]} 26. h4 {[%clk 0:01:44.3]} 26... Ng4 {[%clk 0:01:55.8]} 27.
Bh3 {[%clk 0:01:43]} 27... Nf6 {[%clk 0:01:26.6]} 28. Qg5 {[%clk 0:01:24.3]}
28... Rxc3 {[%clk 0:01:19]} 29. Ne3 {[%clk 0:01:24.1]} 29... Rxe3 {[%clk
0:00:43.1]} 30. fxe3 {[%clk 0:01:12.4]} 30... Rd6 {[%clk 0:00:40.3]} 31. Qf5
{[%clk 0:00:40.5]} 31... Rd8 {[%clk 0:00:20.3]} 32. Qf3 {[%clk 0:00:22.9]} 32...
Qd6 {[%clk 0:00:15.4]} 33. g4 {[%clk 0:00:23.1]} 33... hxg4 {[%clk 0:00:14.9]}
34. Bxg4 {[%clk 0:00:23.7]} 34... c4 {[%clk 0:00:15.4]} 35. bxc4 {[%clk
0:00:22.1]} 35... Bb6 {[%clk 0:00:15.8]} 36. Rb7 {[%clk 0:00:20.2]} 36... Qc5
{[%clk 0:00:14.2]} 37. Bf5 {[%clk 0:00:16]} 37... Qxe3+ {[%clk 0:00:10.3]} 38.
Qxe3 {[%clk 0:00:16.3]} 38... Bxe3+ {[%clk 0:00:11.2]} 39. Kg2 {[%clk
0:00:16.7]} 39... Bf4 {[%clk 0:00:04.8]} 40. Rc7 {[%clk 0:00:11.6]} 40... g6
{[%clk 0:00:03.9]} 41. Rc8 {[%clk 0:00:11.7]} 41... Rxc8 {[%clk 0:00:03.5]} 42.
Bxc8 {[%clk 0:00:12.6]} 42... Nxe4 {[%clk 0:00:04.4]} 43. Rd1 {[%clk 0:00:12.9]}
43... Nd2 {[%clk 0:00:03.3]} 44. c5 {[%clk 0:00:09]} 44... Nb3 {[%clk
0:00:02.4]} 45. Bb7 {[%clk 0:00:07.3]} 45... Nxc5 {[%clk 0:00:02.3]} 46. Bxc6
{[%clk 0:00:07.8]} 46... Ne6 {[%clk 0:00:03.2]} 47. Bd5 {[%clk 0:00:08]} 47...
Nd4 {[%clk 0:00:02.6]} 48. Rb1 {[%clk 0:00:07.5]} 48... Nf5 {[%clk 0:00:03.1]}
49. Kh3 {[%clk 0:00:07.3]} 49... Ne3 {[%clk 0:00:02.7]} 50. Ba2 {[%clk
0:00:07.1]} 50... Nf5 {[%clk 0:00:03.2]} 51. Rb7 {[%clk 0:00:07.6]} 51... Nh6
{[%clk 0:00:04.1]} 52. Bd5 {[%clk 0:00:06.2]} 52... Kg7 {[%clk 0:00:05]} 53. Be4
{[%clk 0:00:04.9]} 53... Kf6 {[%clk 0:00:05.9]} 54. Rb6+ {[%clk 0:00:04.7]}
54... Kg7 {[%clk 0:00:06.8]} 55. Bd5 {[%clk 0:00:03.7]} 55... Be3 {[%clk
0:00:06.4]} 56. Rb7 {[%clk 0:00:03.8]} 56... Bf4 {[%clk 0:00:07.3]} 57. Kg2
{[%clk 0:00:03.9]} 57... Kf6 {[%clk 0:00:06.7]} 58. Kf3 {[%clk 0:00:04.5]} 58...
Kg7 {[%clk 0:00:07.6]} 59. Ke4 {[%clk 0:00:04.8]} 59... Bg3 {[%clk 0:00:07.7]}
60. Bc4 {[%clk 0:00:03.3]} 60... Bxh4 {[%clk 0:00:06.6]} 61. Kxe5 {[%clk
0:00:03.8]} 61... Bg3+ {[%clk 0:00:06.9]} 62. Ke4 {[%clk 0:00:03.9]} 62... Kf6
{[%clk 0:00:07.3]} 63. Bb3 {[%clk 0:00:03.8]} 63... Kg7 {[%clk 0:00:07.1]} 64.
Kf3 {[%clk 0:00:03.9]} 64... Be5 {[%clk 0:00:06.8]} 65. Ke4 {[%clk 0:00:04.2]}
65... Bf6 {[%clk 0:00:07.7]} 66. Bd5 {[%clk 0:00:04.4]} 66... Bg5 {[%clk
0:00:06.9]} 67. Kd3 {[%clk 0:00:04.7]} 67... Bf6 {[%clk 0:00:07.8]} 68. Kc4
{[%clk 0:00:05.3]} 68... g5 {[%clk 0:00:07.9]} 69. Kd3 {[%clk 0:00:05.4]} 69...
g4 {[%clk 0:00:08.8]} 70. Ke4 {[%clk 0:00:05.6]} 70... Bg5 {[%clk 0:00:09.7]}
71. Ke5 {[%clk 0:00:05]} 71... Kg6 {[%clk 0:00:08.4]} 72. Rb6+ {[%clk
0:00:04.6]} 72... f6+ {[%clk 0:00:08.6]} 73. Ke4 {[%clk 0:00:04.8]} 73... Kh5
{[%clk 0:00:02.9]} 74. Be6 {[%clk 0:00:04.4]} 74... Kh4 {[%clk 0:00:02.9]} 75.
Rb1 {[%clk 0:00:04.4]} 75... Kg3 {[%clk 0:00:03.8]} 76. Rh1 {[%clk 0:00:03.8]}
76... Kg2 {[%clk 0:00:02.9]} 77. Rb1 {[%clk 0:00:03.2]} 77... g3 {[%clk
0:00:03.8]} 78. Rb2+ {[%clk 0:00:03.4]} 78... Kg1 {[%clk 0:00:02]} 79. Kf3
{[%clk 0:00:04]} 79... Kf1 {[%clk 0:00:01.1]} 80. Rb1+ {[%clk 0:00:03.6]} 1-0

[Event "*** Titled Tuesday Blitz"]
[Site "Chess.com"]
[Date "2021.02.16"]
[Round "9"]
[White "ChessSwole"]
[Black "BabyBoss31"]
[Result "1/2-1/2"]
[WhiteElo "2519"]
[BlackElo "2332"]
[TimeControl "180+1"]
[EndTime "11:50:17 PST"]
[Termination "Game drawn by stalemate"]

1. b3 {[%clk 0:03:00.9]} 1... c6 {[%clk 0:02:57.9]} 2. Bb2 {[%clk 0:03:01.8]}
2... d5 {[%clk 0:02:57]} 3. e3 {[%clk 0:03:02.3]} 3... Nf6 {[%clk 0:02:56.5]} 4.
f4 {[%clk 0:03:02.5]} 4... g6 {[%clk 0:02:53]} 5. Nf3 {[%clk 0:03:02.5]} 5...
Bg7 {[%clk 0:02:53.1]} 6. Be2 {[%clk 0:03:01.4]} 6... O-O {[%clk 0:02:52.8]} 7.
O-O {[%clk 0:03:01.1]} 7... Nbd7 {[%clk 0:02:48.9]} 8. Ne5 {[%clk 0:02:57.4]}
8... Ne4 {[%clk 0:02:40.3]} 9. d3 {[%clk 0:02:55.9]} 9... Nd6 {[%clk 0:02:22.3]}
10. Nd2 {[%clk 0:02:51.2]} 10... Nf5 {[%clk 0:02:13.5]} 11. Rf3 {[%clk
0:02:42.9]} 11... Qb6 {[%clk 0:02:08]} 12. Nf1 {[%clk 0:02:37.4]} 12... Nxe5
{[%clk 0:01:21.3]} 13. Bxe5 {[%clk 0:02:36.5]} 13... Bxe5 {[%clk 0:01:16.4]} 14.
fxe5 {[%clk 0:02:37.4]} 14... Qc7 {[%clk 0:01:09.2]} 15. d4 {[%clk 0:02:33.7]}
15... f6 {[%clk 0:00:59.4]} 16. exf6 {[%clk 0:02:29.9]} 16... Rxf6 {[%clk
0:01:00.3]} 17. Bd3 {[%clk 0:02:25.6]} 17... Ng7 {[%clk 0:00:51.8]} 18. Rxf6
{[%clk 0:02:20.5]} 18... exf6 {[%clk 0:00:52.7]} 19. e4 {[%clk 0:02:20.5]} 19...
dxe4 {[%clk 0:00:49.5]} 20. Bxe4 {[%clk 0:02:21.4]} 20... f5 {[%clk 0:00:49.7]}
21. Bd3 {[%clk 0:02:15.3]} 21... Be6 {[%clk 0:00:49.8]} 22. Qf3 {[%clk
0:02:07.8]} 22... Rd8 {[%clk 0:00:49.5]} 23. Qf2 {[%clk 0:02:01.9]} 23... Qb6
{[%clk 0:00:46.4]} 24. c3 {[%clk 0:01:58.7]} 24... Qa5 {[%clk 0:00:40.6]} 25.
Qd2 {[%clk 0:01:49.7]} 25... Bxb3 {[%clk 0:00:36]} 26. a3 {[%clk 0:01:32.6]}
26... Bf7 {[%clk 0:00:33.2]} 27. Qb2 {[%clk 0:01:25.7]} 27... b6 {[%clk
0:00:28]} 28. Re1 {[%clk 0:01:24.8]} 28... c5 {[%clk 0:00:25.2]} 29. Re7 {[%clk
0:01:16.6]} 29... cxd4 {[%clk 0:00:24.4]} 30. cxd4 {[%clk 0:01:17.5]} 30... Qd5
{[%clk 0:00:24.8]} 31. Rxa7 {[%clk 0:01:00.4]} 31... Qxd4+ {[%clk 0:00:19.6]}
32. Qxd4 {[%clk 0:01:01.3]} 32... Rxd4 {[%clk 0:00:20.3]} 33. Bb5 {[%clk
0:01:01.4]} 33... Ne6 {[%clk 0:00:17.6]} 34. Rb7 {[%clk 0:00:59.8]} 34... Rd6
{[%clk 0:00:17]} 35. Bc4 {[%clk 0:00:54.4]} 35... Nd8 {[%clk 0:00:14.3]} 36.
Bxf7+ {[%clk 0:00:52.4]} 36... Nxf7 {[%clk 0:00:15.2]} 37. Ne3 {[%clk
0:00:52.1]} 37... Ne5 {[%clk 0:00:14.7]} 38. a4 {[%clk 0:00:48.5]} 38... f4
{[%clk 0:00:13.1]} 39. Re7 {[%clk 0:00:37.5]} 39... fxe3 {[%clk 0:00:12.1]} 40.
Kf1 {[%clk 0:00:35.3]} 40... Nc4 {[%clk 0:00:11.7]} 41. Re4 {[%clk 0:00:31.4]}
41... Rd1+ {[%clk 0:00:09.4]} 42. Ke2 {[%clk 0:00:31.4]} 42... Rc1 {[%clk
0:00:09.3]} 43. Kd3 {[%clk 0:00:29.1]} 43... Nb2+ {[%clk 0:00:09.1]} 44. Ke2
{[%clk 0:00:28]} 44... Rc2+ {[%clk 0:00:08]} 45. Kxe3 {[%clk 0:00:27.3]} 45...
Rxg2 {[%clk 0:00:08.1]} 46. Rb4 {[%clk 0:00:27.2]} 46... Rxh2 {[%clk 0:00:07.5]}
47. Kf3 {[%clk 0:00:22.7]} 47... Kg7 {[%clk 0:00:06.6]} 48. Kg3 {[%clk
0:00:20.9]} 48... Rc2 {[%clk 0:00:06.4]} 49. Rxb6 {[%clk 0:00:21.3]} 49... Nxa4
{[%clk 0:00:06.3]} 50. Rb7+ {[%clk 0:00:21.1]} 50... Kh6 {[%clk 0:00:06.7]} 51.
Rb4 {[%clk 0:00:21.6]} 51... Nc5 {[%clk 0:00:07.1]} 52. Rb5 {[%clk 0:00:21.5]}
52... Ne6 {[%clk 0:00:06.4]} 53. Kg4 {[%clk 0:00:21.7]} 53... Rc4+ {[%clk
0:00:05.9]} 54. Kh3 {[%clk 0:00:21.9]} 54... g5 {[%clk 0:00:06.4]} 55. Rb6
{[%clk 0:00:21.5]} 55... Re4 {[%clk 0:00:06.8]} 56. Kg3 {[%clk 0:00:22.1]} 56...
Kg6 {[%clk 0:00:07]} 57. Kf3 {[%clk 0:00:22.2]} 57... Re5 {[%clk 0:00:07.2]} 58.
Kg4 {[%clk 0:00:21.7]} 58... h5+ {[%clk 0:00:07.4]} 59. Kg3 {[%clk 0:00:22.2]}
59... Kf5 {[%clk 0:00:07.5]} 60. Rb8 {[%clk 0:00:21.7]} 60... h4+ {[%clk
0:00:08.1]} 61. Kf3 {[%clk 0:00:21.4]} 61... Nd4+ {[%clk 0:00:07.8]} 62. Kg2
{[%clk 0:00:21.8]} 62... Kg4 {[%clk 0:00:08.2]} 63. Rb4 {[%clk 0:00:21.6]} 63...
Re4 {[%clk 0:00:08.6]} 64. Rc4 {[%clk 0:00:22.3]} 64... h3+ {[%clk 0:00:08.1]}
65. Kh2 {[%clk 0:00:21.8]} 65... Nf3+ {[%clk 0:00:08.4]} 66. Kh1 {[%clk
0:00:21.1]} 66... Nd2 {[%clk 0:00:07.3]} 67. Rc1 {[%clk 0:00:19.4]} 67... Kf5
{[%clk 0:00:06.3]} 68. Rf1+ {[%clk 0:00:18.3]} 68... Ke5 {[%clk 0:00:06.3]} 69.
Rd1 {[%clk 0:00:16.4]} 69... Nc4 {[%clk 0:00:06.4]} 70. Rc1 {[%clk 0:00:15.8]}
70... g4 {[%clk 0:00:06.8]} 71. Ra1 {[%clk 0:00:15.6]} 71... g3 {[%clk
0:00:06.9]} 72. Rg1 {[%clk 0:00:15.4]} 72... Kf4 {[%clk 0:00:03.1]} 73. Rf1+
{[%clk 0:00:14]} 73... Kg4 {[%clk 0:00:03.4]} 74. Rg1 {[%clk 0:00:13.9]} 74...
Re2 {[%clk 0:00:03.1]} 75. Ra1 {[%clk 0:00:13.3]} 75... Rh2+ {[%clk 0:00:02.6]}
76. Kg1 {[%clk 0:00:13.6]} 76... Rg2+ {[%clk 0:00:03.4]} 77. Kh1 {[%clk
0:00:14]} 77... Rc2 {[%clk 0:00:04.1]} 78. Rg1 {[%clk 0:00:13.3]} 78... Ne3
{[%clk 0:00:03.6]} 79. Ra1 {[%clk 0:00:12.2]} 79... Rh2+ {[%clk 0:00:03.8]} 80.
Kg1 {[%clk 0:00:12.4]} 80... Rb2 {[%clk 0:00:03.7]} 81. Kh1 {[%clk 0:00:13.3]}
81... g2+ {[%clk 0:00:03.7]} 82. Kh2 {[%clk 0:00:13.4]} 82... Nf5 {[%clk
0:00:04.4]} 83. Ra4+ {[%clk 0:00:12.2]} 83... Kg5 {[%clk 0:00:04.5]} 84. Ra1
{[%clk 0:00:08.1]} 84... Nh4 {[%clk 0:00:04.4]} 85. Kxh3 {[%clk 0:00:08]} 85...
Rb3+ {[%clk 0:00:03.3]} 86. Kh2 {[%clk 0:00:07.8]} 86... Rb2 {[%clk 0:00:04.2]}
87. Ra3 {[%clk 0:00:05.7]} 87... Kg4 {[%clk 0:00:04.1]} 88. Rg3+ {[%clk
0:00:06.1]} 88... Kf4 {[%clk 0:00:04.7]} 89. Rh3 {[%clk 0:00:06.7]} 89... Nf3+
{[%clk 0:00:05.2]} 90. Rxf3+ {[%clk 0:00:04.5]} 90... Kxf3 {[%clk 0:00:05.1]}
91. Kg1 {[%clk 0:00:04.4]} 91... Rb1+ {[%clk 0:00:05.3]} 92. Kh2 {[%clk
0:00:04.9]} 92... g1=N {[%clk 0:00:05.8]} 93. Kh1 {[%clk 0:00:04.7]} 93... Ne2+
{[%clk 0:00:06.3]} 94. Kh2 {[%clk 0:00:05.6]} 94... Nf4 {[%clk 0:00:06.4]}
1/2-1/2